bitfinex-derivatives/quotes_ETHF0:USTF0_20250908
["timestamp","ask_amount","ask_price","bid_price","bid_amount"]
[1757344888408,0.7288,4380.7,4379.8,32.895]
[1757344888409,0.2959,4380.5,4379.8,32.895]
[1757344888710,3.0124,4379.9,4379.8,32.895]
[1757344888915,3.0124,4379.9,4379.8,33.142]
[1757344889112,0.7288,4379.9,4379.8,33.142]
[1757344889308,0.7288,4379.9,4379.8,32.895]
[1757344889709,0.7288,4379.9,4379.8,33.142]
[1757344890915,1.0247,4380.5,4379.8,33.8787]
[1757344891110,2.2836,4380.0,4379.9,0.7367]
[1757344892914,3.9366,4380.7,4379.9,0.7367]
[1757344893119,2.2836,4380.1,4380.0,1.0319]
[1757344893618,3.9366,4380.7,4380.0,1.0319]
[1757344893822,2.2836,4380.1,4380.0,1.0319]
[1757344894008,2.2836,4380.1,4380.0,1.2779]
[1757344894213,3.2078,4380.7,4380.0,0.9827]
[1757344894416,3.0124,4380.1,4380.0,0.246]
[1757344894811,0.2959,4382.0,4380.0,0.246]
[1757344894812,0.7288,4381.1,4380.1,0.7367]
[1757344895118,3.2078,4381.2,4380.3,0.7367]
[1757344895322,2.2836,4380.5,4380.2,0.246]
[1757344895524,3.0709,4380.5,4380.3,0.9837]
[1757344896029,0.7873,4380.4,4380.3,0.247]
[1757344896222,3.0709,4380.4,4380.0,3.503]
[1757344896417,3.0709,4380.2,4380.1,0.247]
[1757344896823,0.7873,4380.2,4380.1,1.027]
[1757344897623,0.7873,4380.2,4380.1,0.78]
[1757344897820,0.7873,4380.2,4380.1,1.027]
[1757344898020,0.7873,4380.9,4380.1,1.027]
[1757344898229,2.2836,4380.2,4380.1,1.027]
[1757344898420,2.2836,4380.5,4380.2,0.78]
[1757344898626,2.2836,4380.5,4380.4,3.9878]
[1757344898826,3.2078,4381.3,4380.4,3.4538]
[1757344899121,2.2836,4380.5,4380.4,4.2338]
[1757344899525,3.2078,4381.3,4380.4,3.4538]
[1757344899720,0.7873,4381.5,4380.6,0.78]
[1757344899915,2.01346866,4381.5,4381.1,0.78]
[1757344900116,2.01346866,4381.5,4381.3,0.78]
[1757344900330,3.2078,4381.8,4381.2,0.246]
[1757344900629,2.01346866,4381.5,4381.3,0.78]
[1757344900831,2.01346866,4381.5,4381.2,0.246]
[1757344901030,0.7873,4381.9,4381.3,0.78]
[1757344901228,2.01346866,4381.5,4381.2,0.246]
[1757344901727,0.7873,4381.4,4381.3,0.78]
[1757344902028,0.3312,4381.5,4381.3,0.246]
[1757344902324,2.80076866,4381.4,4381.3,0.246]
[1757344902526,2.24170866,4381.4,4381.0,3.2078]
[1757344902730,3.2078,4381.2,4381.1,0.246]
[1757344902935,3.9951,4381.2,4381.1,0.246]
[1757344903129,3.2078,4381.2,4381.1,0.246]
[1757344903725,3.9951,4381.2,4380.2,3.2078]
[1757344904028,2.01346866,4380.5,4380.3,1.026]
[1757344904229,0.7873,4381.1,4380.4,0.78]
[1757344904428,0.3312,4381.5,4380.5,0.3087]
[1757344904631,2.01346866,4380.9,4380.6,0.246]
[1757344904834,2.80076866,4380.9,4380.6,0.246]
[1757344905034,0.7873,4380.9,4380.6,0.246]
[1757344905532,0.7873,4380.7,4380.4,0.78]
[1757344905732,2.01346866,4380.8,4380.7,0.246]
[1757344905929,3.2078,4381.2,4380.7,0.246]
[1757344906129,2.01346866,4380.8,4380.7,1.026]
[1757344906538,0.7873,4381.1,4380.7,0.246]
[1757344906835,3.2078,4381.2,4380.7,0.246]
[1757344907038,2.01346866,4381.0,4380.7,0.246]
[1757344907338,0.7873,4380.8,4380.7,0.246]
[1757344907830,0.3312,4381.5,4380.3,1.21307921]
[1757344908038,2.01346866,4380.9,4380.3,1.21307921]
[1757344908236,2.01346866,4380.9,4380.4,0.246]
[1757344908537,0.3312,4381.5,4380.5,0.246]
[1757344908538,0.7873,4381.4,4380.5,0.246]
[1757344908733,2.80076866,4380.6,4380.5,0.246]
[1757344908935,2.6162,4380.5,4378.9,1.61743894]
[1757344909239,1.22630831,4379.4,4376.8,0.78]
[1757344909435,1.22630831,4379.1,4376.3,1.029]
[1757344909737,1.76231927,4379.0,4376.3,1.029]
[1757344909935,3.2078,4377.3,4376.6,0.41484386]
[1757344910237,3.2078,4376.8,4376.3,0.78]
[1757344910434,0.21835419,4376.7,4376.1,0.249]
[1757344910631,3.2078,4376.3,4376.1,0.249]
[1757344910834,0.21835419,4376.2,4376.1,0.249]
[1757344911042,0.21835419,4376.2,4376.1,1.44384386]
[1757344911339,0.21835419,4376.2,4376.1,1.029]
[1757344912241,3.2078,4377.3,4376.2,0.78]
[1757344912437,3.2078,4377.3,4376.6,0.41484386]
[1757344912832,3.2078,4377.3,4376.2,0.78]
[1757344913139,3.2078,4377.3,4376.6,0.41484386]
[1757344913327,3.2078,4377.3,4376.4,0.41484386]
[1757344913732,3.2078,4377.3,4376.6,0.41484386]
[1757344914737,3.2078,4377.3,4376.7,0.41484386]
[1757344915137,3.2078,4377.3,4376.5,1.0887]
[1757344915338,3.2078,4377.3,4376.7,0.41484386]
[1757344915734,3.2078,4377.3,4376.5,1.0887]
[1757344915933,3.2078,4377.3,4376.7,0.41484386]
[1757344916436,3.2078,4377.3,4376.5,1.0887]
[1757344916639,3.2078,4377.3,4376.7,0.41484386]
[1757344917140,0.248,4377.2,4376.7,0.41484386]
[1757344917535,3.2078,4377.3,4377.0,0.3087]
[1757344917735,3.9951,4378.3,4377.1,0.78]
[1757344918036,0.7873,4377.7,4377.3,3.2078]
[1757344918237,0.7873,4377.7,4377.4,0.41484386]
[1757344918434,0.7873,4377.7,4377.4,1.19484386]
[1757344918629,0.7873,4377.7,4377.4,0.78]
[1757344918840,3.9951,4378.3,4377.6,0.41484386]
[1757344919439,3.9951,4378.3,4377.7,0.41484386]
[1757344919640,3.9951,4378.3,4377.6,0.78]
[1757344919941,3.9951,4378.3,4377.8,0.41484386]
[1757344920140,0.7873,4378.2,4377.9,0.78]
[1757344920342,3.9951,4378.3,4377.5,1.0887]
[1757344920533,3.2078,4378.3,4377.8,0.41484386]
[1757344920739,3.2078,4378.3,4377.8,1.19484386]
[1757344920939,3.2078,4378.3,4377.3,3.2078]
[1757344921245,0.7873,4378.2,4377.3,3.2078]
[1757344921449,3.2078,4378.3,4377.3,3.2078]
[1757344921646,0.7873,4378.2,4377.5,0.41484386]
[1757344921944,3.2078,4378.3,4377.8,0.41484386]
[1757344922249,3.2078,4379.8,4378.3,0.78]
[1757344922442,0.114,4380.4,4380.0,0.3087]
[1757344922640,0.7873,4381.3,4380.3,0.78]
[1757344922842,0.7873,4381.3,4380.3,4.40264386]
[1757344923042,0.7873,4380.8,4380.0,0.5587]
[1757344923241,0.7873,4380.8,4380.3,0.41484386]
[1757344923749,0.7873,4380.8,4380.0,0.5587]
[1757344923947,3.2078,4380.9,4380.0,0.5587]
[1757344923948,3.2078,4380.9,4380.3,0.41484386]
[1757344924139,0.7873,4380.8,4380.3,0.41484386]
[1757344924443,0.7873,4380.8,4380.0,0.5587]
[1757344924751,0.7873,4380.8,4380.3,0.41484386]
[1757344925043,0.7873,4380.8,4379.9,1.03]
[1757344925241,0.7873,4380.8,4379.9,0.25]
[1757344925443,0.7873,4380.8,4380.0,0.324]
[1757344925945,0.7873,4380.8,4380.3,0.41484386]
[1757344926142,0.7873,4380.8,4380.4,0.7854]
[1757344926344,3.2078,4380.9,4380.4,0.7854]
[1757344926845,0.7887,4380.8,4380.4,0.7854]
[1757344927147,3.2078,4380.9,4380.3,3.2078]
[1757344927440,3.2078,4380.9,4380.4,0.41484386]
[1757344927646,3.2078,4380.9,4380.5,0.41484386]
[1757344927847,3.2078,4380.9,4380.6,0.7854]
[1757344928051,3.9965,4380.9,4380.6,0.7854]
[1757344928640,3.2078,4381.5,4380.6,0.7854]
[1757344928845,3.2078,4381.5,4380.8,0.41484386]
[1757344929646,3.2078,4381.5,4380.8,3.2078]
[1757344929851,3.2078,4381.5,4381.0,0.73884386]
[1757344930042,0.7887,4381.4,4381.1,0.7854]
[1757344930544,0.7887,4381.4,4381.0,0.324]
[1757344930749,3.2078,4381.5,4381.0,0.574]
[1757344930950,3.2078,4381.5,4381.2,0.7854]
[1757344931252,3.4568,4382.1,4381.4,0.41484386]
[1757344931452,0.249,4382.1,4381.5,1.1094]
[1757344931951,0.7887,4382.0,4381.3,3.2078]
[1757344932149,0.7887,4382.0,4381.5,0.41484386]
[1757344932345,0.249,4382.1,4381.5,0.41484386]
[1757344932547,0.7887,4382.0,4381.3,3.9932]
[1757344932741,0.7887,4382.0,4381.6,0.7854]
[1757344932942,0.249,4382.1,4381.6,0.7854]
[1757344933147,0.7887,4382.4,4381.6,0.7854]
[1757344933352,0.41076,4381.7,4381.6,0.7854]
[1757344935152,0.41076,4381.7,4381.6,4.7854]
[1757344935354,1.02677,4382.3,4382.1,0.7854]
[1757344935551,0.4107,4382.3,4382.2,1.0344]
[1757344935747,0.4107,4382.3,4382.2,1.44924386]
[1757344937147,0.4107,4382.3,4382.2,1.20024386]
[1757344937348,10.2646,4383.7,4382.2,1.20024386]
[1757344937349,1.0645,4385.0,4383.1,0.7854]
[1757344937548,0.7887,4384.9,4384.1,3.9932]
[1757344937744,0.7887,4385.4,4384.2,0.9084]
[1757344937950,0.7887,4385.4,4384.6,0.41484386]
[1757344938148,0.7887,4385.4,4384.3,3.4568]
[1757344938149,0.7887,4385.4,4384.7,0.41484386]
[1757344938344,0.7887,4385.4,4384.8,1.0344]
[1757344938551,3.2078,4385.5,4384.8,0.7854]
[1757344938851,0.7887,4385.4,4384.9,0.66384386]
[1757344939154,3.5274,4385.5,4384.3,3.2078]
[1757344939353,0.7887,4385.4,4384.2,0.7854]
[1757344939548,0.7887,4385.4,4383.9,3.2078]
[1757344939549,3.2078,4384.7,4383.9,3.2078]
[1757344939753,0.7887,4384.4,4383.9,3.2078]
[1757344939956,0.7887,4384.4,4383.7,1.0354]
[1757344940152,0.3196,4384.5,4383.9,0.41484386]
[1757344940349,0.7887,4384.1,4383.5,0.7854]
[1757344940550,3.2078,4384.2,4383.5,0.324]
[1757344940744,3.2078,4384.8,4384.1,0.41484386]
[1757344940955,0.7887,4384.7,4384.1,3.2078]
[1757344941157,0.3196,4385.0,4384.1,3.2078]
[1757344941158,0.7887,4384.9,4384.2,1.20024386]
[1757344941360,3.2078,4384.8,4384.2,0.41484386]
[1757344941658,0.7887,4384.7,4384.1,0.25]
[1757344941856,3.2078,4384.8,4384.2,0.41484386]
[1757344942052,3.2078,4384.8,4384.0,0.324]
[1757344942250,0.3196,4386.5,4384.3,0.7854]
[1757344942251,3.2078,4385.3,4384.3,0.7854]
[1757344942451,3.2078,4385.8,4384.7,3.2078]
[1757344942754,3.2078,4385.8,4384.9,0.7854]
[1757344942950,0.7887,4385.7,4385.2,0.41484386]
[1757344943149,3.2078,4385.8,4385.2,0.41484386]
[1757344943460,0.7887,4385.7,4385.0,0.25]
[1757344943757,0.7887,4385.7,4385.1,0.41484386]
[1757344944060,0.7887,4385.2,4384.7,0.25]
[1757344944260,0.7887,4385.2,4384.3,0.7854]
[1757344944555,3.2078,4385.3,4384.7,0.41484386]
[1757344944858,0.7887,4385.6,4385.0,0.7854]
[1757344945050,3.2078,4385.9,4385.4,0.41484386]
[1757344945255,3.9965,4385.9,4385.5,0.7854]
[1757344945447,0.7887,4385.8,4385.5,0.7854]
[1757344945654,3.2078,4385.9,4385.5,0.7854]
[1757344945948,3.2078,4385.9,4384.9,3.2078]
[1757344945949,0.7887,4385.8,4384.9,3.2078]
[1757344946153,0.7887,4385.8,4385.0,0.7854]
[1757344946354,0.7887,4385.8,4385.0,1.1094]
[1757344946554,0.7887,4385.8,4385.4,0.41484386]
[1757344946758,3.2078,4385.9,4385.4,1.20024386]
[1757344946952,3.2078,4385.9,4385.4,0.7854]
[1757344947152,0.7887,4385.8,4385.4,0.41484386]
[1757344947360,0.7887,4385.8,4385.5,0.7854]
[1757344947657,0.7887,4385.8,4385.1,0.251]
[1757344947857,0.7887,4385.8,4385.4,0.41484386]
[1757344948063,3.2078,4386.4,4385.1,0.251]
[1757344948255,0.7887,4386.3,4385.5,0.7854]
[1757344948455,0.7887,4386.3,4385.7,0.41484386]
[1757344948960,0.7887,4386.3,4385.4,3.4588]
[1757344949158,0.7887,4386.4,4385.6,3.9932]
[1757344949355,0.251,4386.8,4386.0,0.21494386]
[1757344949552,0.7887,4386.3,4385.6,0.7854]
[1757344949853,3.2078,4386.4,4385.9,0.21494386]
[1757344950054,0.7887,4386.3,4385.6,0.7854]
[1757344950261,3.2078,4386.4,4385.9,0.21494386]
[1757344950462,0.7887,4386.3,4385.9,0.21494386]
[1757344950663,3.9965,4386.4,4385.6,0.7854]
[1757344950857,3.9965,4386.4,4385.9,0.21494386]
[1757344951053,3.2078,4386.4,4385.0,3.5318]
[1757344951254,0.7887,4385.8,4385.5,0.21494386]
[1757344951457,0.7887,4385.8,4385.1,0.21494386]
[1757344951660,0.7887,4385.8,4385.1,0.7854]
[1757344952260,3.2078,4385.4,4385.1,0.251]
[1757344952460,0.7887,4385.3,4384.6,0.251]
[1757344952857,0.7887,4385.3,4384.5,3.9932]
[1757344953059,3.2078,4385.4,4384.8,0.21494386]
[1757344953261,3.2078,4384.9,4384.0,3.5318]
[1757344953462,3.2078,4384.9,4384.1,0.251]
[1757344953463,3.2078,4384.4,4384.1,0.251]
[1757344953656,0.7887,4384.3,4384.1,0.251]
[1757344954260,0.7887,4384.3,4383.5,3.5318]
[1757344954560,0.7887,4384.8,4383.7,0.7854]
[1757344954760,0.55082121,4384.7,4384.0,0.21494386]
[1757344954956,0.7887,4384.8,4384.0,3.2078]
[1757344955266,3.2078,4384.9,4384.7,0.21494386]
[1757344955460,3.2078,4384.9,4384.4,0.251]
[1757344955967,0.8166,4384.8,4384.1,0.81]
[1757344956166,0.8166,4384.8,4384.3,0.21494386]
[1757344956459,0.55144522,4384.7,4384.6,0.21494386]
[1757344956665,1.36804522,4384.7,4384.6,0.21494386]
[1757344956863,0.55144522,4384.7,4384.1,0.251]
[1757344957160,0.8166,4384.4,4383.8,0.251]
[1757344957364,0.8166,4384.8,4383.8,0.251]
[1757344957558,0.80289461,4384.7,4384.1,0.21494386]
[1757344957760,0.8166,4384.3,4382.5,3.2078]
[1757344957961,3.2078,4383.5,4382.2,0.81]
[1757344958255,3.2078,4382.9,4382.2,0.81]
[1757344958456,0.55189461,4382.8,4382.6,0.81]
[1757344958763,0.114,4383.4,4382.6,0.81]
[1757344958956,0.55240744,4383.3,4382.6,0.81]
[1757344959160,1.36900744,4383.2,4382.5,3.2078]
[1757344959358,0.55240744,4383.1,4382.5,4.0178]
[1757344959768,0.55240744,4383.1,4382.6,0.81]
[1757344959956,4.57680744,4383.0,4382.6,0.81]
[1757344960262,0.55240744,4382.9,4382.6,0.81]
[1757344961067,0.55240744,4382.9,4382.5,0.3204]
[1757344961863,0.114,4383.4,4382.9,0.81]
[1757344962063,0.55332372,4383.3,4382.8,3.2078]
[1757344962368,1.36992372,4383.2,4382.5,1.1304]
[1757344962562,1.36992372,4383.2,4382.5,0.81]
[1757344962563,0.55332372,4383.1,4382.5,0.81]
[1757344962762,4.0244,4383.0,4382.0,4.3382]
[1757344962962,0.55332372,4382.9,4382.0,4.5892]
[1757344963468,0.55332372,4382.9,4382.1,0.81]
[1757344964070,0.55332372,4382.9,4382.1,1.061]
[1757344964259,0.55332372,4382.9,4382.2,0.81]
[1757344964458,0.55332372,4382.9,4382.5,0.3204]
[1757344964970,0.55332372,4382.9,4382.6,0.81]
[1757344965359,0.114,4383.4,4383.1,0.81]
[1757344965664,0.114,4383.4,4383.3,4.0178]
[1757344966274,0.114,4383.4,4383.3,4.2688]
[1757344966571,0.8166,4383.3,4383.1,0.251]
[1757344966772,0.8166,4383.3,4383.1,1.061]
[1757344967070,0.8166,4383.3,4382.8,3.2078]
[1757344967271,0.8166,4383.3,4382.7,0.251]
[1757344968367,0.114,4383.4,4382.8,0.81]
[1757344968872,0.114,4383.4,4383.0,0.81]
[1757344969071,0.8166,4383.3,4383.0,0.81]
[1757344969371,0.114,4383.4,4383.0,0.3204]
[1757344969765,0.114,4383.4,4383.2,0.81]
[1757344969965,0.114,4383.4,4383.3,0.81]
[1757344970169,0.8166,4383.9,4383.3,0.81]
[1757344970472,3.2078,4384.4,4383.3,0.81]
[1757344970473,4.0244,4384.4,4383.3,0.81]
[1757344970665,0.251,4384.3,4383.3,0.81]
[1757344970860,0.251,4384.3,4383.3,1.061]
[1757344971073,0.8166,4384.2,4383.3,1.061]
[1757344971466,3.2078,4384.4,4383.3,1.061]
[1757344971666,0.8166,4384.2,4383.3,1.061]
[1757344971864,0.8166,4384.2,4383.3,0.251]
[1757344972670,0.8166,4384.2,4383.3,1.061]
[1757344973170,0.114,4384.3,4383.5,0.3204]
[1757344973369,0.114,4384.3,4383.6,0.81]
[1757344974969,0.114,4384.3,4383.5,3.5282]
[1757344974970,0.114,4384.3,4384.1,0.81]
[1757344975170,0.114,4384.3,4384.2,0.81]
[1757344975875,0.114,4384.3,4384.2,1.061]
[1757344976374,0.114,4384.3,4384.2,0.81]
[1757344977170,0.9306,4384.3,4384.2,0.81]
[1757344977479,0.114,4384.3,4384.0,0.25]
[1757344977773,0.114,4384.3,4383.7,0.25]
[1757344978174,0.8166,4384.2,4383.6,0.81]
[1757344978777,0.8166,4383.8,4383.1,0.81]
[1757344978971,0.8166,4383.8,4382.8,0.25]
[1757344979770,0.8166,4383.8,4382.9,0.81]
[1757344980369,0.53881912,4383.7,4382.6,32.863]
[1757344980570,0.8166,4383.4,4382.7,0.25]
[1757344981574,0.8166,4383.4,4382.8,0.81]
[1757344982779,4.0244,4383.9,4382.8,0.81]
[1757344982981,0.539323,4383.8,4382.8,0.81]
[1757344983176,4.2744,4383.9,4382.8,0.81]
[1757344983480,0.5393582,4383.8,4382.8,0.81]
[1757344983674,0.114,4383.8,4382.8,0.81]
[1757344983869,0.114,4383.8,4383.0,3.5282]
[1757344984071,0.114,4383.8,4383.1,0.81]
[1757344984278,0.114,4383.8,4383.6,0.81]
[1757344984479,0.114,4383.8,4383.7,1.059]
[1757344984981,0.114,4383.8,4383.7,0.81]
[1757344985477,0.7685,4383.7,4383.6,0.249]
[1757344985782,0.114,4383.8,4383.6,1.0361]
[1757344985987,0.114,4383.8,4383.0,3.5282]
[1757344985988,0.8825,4383.8,4383.1,0.7871]
[1757344987277,0.8825,4383.8,4383.2,0.249]
[1757344987875,0.8825,4383.8,4383.0,3.2078]
[1757344988080,0.114,4383.8,4383.0,3.2078]
[1757344988381,0.114,4383.8,4382.6,0.7871]
[1757344988382,0.7685,4383.7,4382.9,0.249]
[1757344988974,0.7685,4383.7,4382.6,0.7871]
[1757344989279,0.7685,4383.7,4382.8,0.249]
[1757344990369,0.99664,4383.7,4382.8,0.249]
[1757344990578,0.7685,4383.3,4382.8,0.249]
[1757344990776,0.114,4383.8,4382.8,0.249]
[1757344991074,1.30857454,4383.7,4383.0,0.3258]
[1757344991275,0.114,4383.8,4383.5,0.3258]
[1757344992084,0.114,4383.8,4383.7,3.2078]
[1757344992281,0.114,4383.8,4383.7,3.9949]
[1757344992476,0.114,4383.8,4383.7,0.7871]
[1757344993072,0.8825,4383.8,4383.7,0.7871]
[1757344993272,0.114,4383.8,4383.7,0.7871]
[1757344993877,0.114,4383.8,4383.7,3.9949]
[1757344994079,0.114,4383.8,4383.7,4.2439]
[1757344994878,0.114,4383.8,4383.7,3.9949]
[1757344995182,0.114,4383.8,4383.7,4.2439]
[1757344997181,0.114,4383.8,4383.7,1.0361]
[1757344997582,0.114,4383.8,4383.7,0.7871]
[1757344998176,0.114,4383.8,4383.2,3.2078]
[1757344998383,0.7685,4383.7,4383.3,0.249]
[1757344998887,0.7685,4383.7,4383.4,0.7871]
[1757344999089,0.7685,4383.7,4383.3,0.249]
[1757344999791,0.114,4383.8,4383.5,0.3258]
[1757344999984,0.114,4383.8,4383.7,3.9949]
[1757345000285,0.114,4383.8,4383.7,4.2439]
[1757345002387,0.114,4383.8,4383.7,1.0361]
[1757345002986,0.114,4383.8,4383.7,1.0351]
[1757345003188,0.7685,4383.7,4383.2,3.9949]
[1757345003387,0.7685,4383.7,4383.2,4.2429]
[1757345003686,0.114,4383.8,4383.2,3.4558]
[1757345003885,0.114,4383.8,4383.3,0.7871]
[1757345004287,0.114,4383.8,4383.6,0.7871]
[1757345004591,0.114,4383.8,4383.7,0.7871]
[1757345006383,0.8825,4383.8,4383.7,0.248]
[1757345006693,0.8825,4383.8,4383.0,0.3258]
[1757345006694,0.7685,4383.7,4383.3,1.0351]
[1757345006896,0.7685,4383.7,4383.4,0.7871]
[1757345007398,0.114,4383.8,4383.3,0.248]
[1757345007595,0.114,4383.8,4383.6,0.7871]
[1757345007895,0.114,4383.8,4383.5,0.3258]
[1757345008097,0.8825,4383.8,4383.6,0.7871]
[1757345008298,0.8825,4383.8,4383.5,0.3258]
[1757345008691,0.7685,4383.8,4383.5,0.3258]
[1757345008993,0.7685,4384.4,4383.6,0.7871]
[1757345009195,0.7685,4384.2,4383.6,0.7871]
[1757345009386,0.54067616,4384.3,4383.5,0.3258]
[1757345009387,0.54067616,4384.1,4383.5,0.3258]
[1757345009588,0.54067616,4384.1,4383.5,1.1129]
[1757345009589,0.54067616,4384.0,4383.5,1.1129]
[1757345009783,0.7685,4383.9,4383.6,0.7871]
[1757345010185,0.114,4384.0,4383.5,0.3258]
[1757345010386,0.7685,4383.9,4383.6,0.7871]
[1757345010696,0.114,4384.0,4383.5,0.3258]
[1757345010888,0.7685,4383.9,4383.6,0.7871]
[1757345011094,0.114,4384.0,4383.6,0.7871]
[1757345011292,0.114,4384.0,4383.5,0.3258]
[1757345011493,0.114,4384.0,4383.6,0.7871]
[1757345011689,0.7685,4383.9,4383.6,0.7871]
[1757345011895,0.7685,4383.9,4383.3,0.248]
[1757345014397,0.5153,4383.4,4383.3,0.7883]
[1757345014600,1.2838,4383.4,4383.3,1.5754]
[1757345014901,1.8094,4383.4,4383.3,1.5754]
[1757345015196,1.8094,4383.4,4383.3,0.7883]
[1757345015699,1.8094,4383.4,4383.3,1.3213]
[1757345015996,0.8087,4383.3,4383.1,3.2078]
[1757345016196,1.8661,4383.2,4383.1,3.2078]
[1757345016398,1.8661,4383.2,4383.1,5.0421]
[1757345016798,1.0574,4383.2,4383.1,5.0421]
[1757345017201,1.8661,4383.2,4383.1,5.0421]
[1757345017500,1.8661,4383.2,4383.1,3.9888]
[1757345017699,1.8661,4383.2,4383.1,3.2078]
[1757345017897,1.8661,4383.2,4383.1,3.7331]
[1757345018092,0.5086,4383.2,4383.1,5.0421]
[1757345018600,0.8696,4384.0,4383.9,1.0533]
[1757345018799,1.16344598,4384.0,4383.9,1.8343]
[1757345019302,1.97214598,4384.0,4383.9,1.8343]
[1757345020201,0.114,4384.0,4383.9,1.8343]
[1757345020897,0.114,4384.0,4383.9,5.0421]
[1757345022103,0.114,4384.0,4383.9,5.2881]
[1757345022699,0.8087,4385.1,4384.0,0.3193]
[1757345022898,0.54099398,4385.0,4384.9,1.8343]
[1757345023303,4.2625,4385.9,4385.0,0.3193]
[1757345023605,0.54075198,4385.8,4385.1,0.781]
[1757345023804,0.54075198,4385.7,4385.2,1.06239632]
[1757345023998,0.8087,4385.5,4385.1,0.781]
[1757345024203,1.34945198,4385.4,4385.0,0.5653]
[1757345024404,4.0165,4385.9,4385.2,0.781]
[1757345024604,0.5404524,4385.8,4385.5,0.3193]
[1757345024801,0.5404524,4385.7,4385.6,0.781]
[1757345025199,3.2078,4385.9,4385.5,0.3193]
[1757345025400,0.3066,4386.5,4385.5,0.3193]
[1757345025401,0.54007582,4385.8,4385.6,0.781]
[1757345025600,0.8087,4386.2,4385.6,0.781]
[1757345025901,1.34875834,4386.1,4385.6,0.781]
[1757345026199,0.54005834,4386.0,4385.6,0.781]
[1757345026405,0.8087,4386.1,4385.6,0.781]
[1757345026605,1.34845538,4386.0,4385.6,0.781]
[1757345026806,0.8087,4386.0,4385.5,0.3193]
[1757345027009,1.3173,4386.0,4385.9,1.3063]
[1757345027200,1.8661,4386.0,4385.9,1.3063]
[1757345027605,1.8661,4386.0,4385.9,1.8343]
[1757345027802,1.8661,4386.0,4385.9,1.0533]
[1757345028602,1.8661,4386.0,4385.9,1.8343]
[1757345029205,1.8661,4386.0,4385.5,0.5653]
[1757345029405,1.0574,4385.9,4385.8,0.5253]
[1757345029607,1.0574,4385.9,4385.8,1.3063]
[1757345029608,1.8661,4385.9,4385.8,1.3063]
[1757345030005,0.8087,4385.8,4385.0,3.2078]
[1757345030205,1.8661,4385.2,4385.1,0.5253]
[1757345030909,1.8661,4385.2,4385.1,1.3063]
[1757345031205,0.5086,4384.9,4384.8,1.8343]
[1757345031508,0.5086,4384.9,4384.8,2.11465016]
[1757345032312,0.8087,4385.8,4385.0,0.3193]
[1757345032506,1.8661,4385.8,4385.7,0.5253]
[1757345033013,1.8661,4385.8,4385.0,0.3193]
[1757345033208,0.5086,4384.4,4384.3,1.3063]
[1757345033412,3.5144,4385.5,4384.4,0.781]
[1757345033413,0.8087,4385.1,4384.4,0.781]
[1757345033714,1.0574,4385.1,4384.6,0.781]
[1757345033903,0.47306,4385.4,4384.1,3.2078]
[1757345033904,0.5086,4384.2,4384.1,5.0421]
[1757345034107,1.8661,4384.2,4384.1,5.0421]
[1757345034503,3.2078,4385.7,4384.7,1.0533]
[1757345034703,0.5086,4384.9,4384.8,1.3063]
[1757345035012,1.1153,4385.5,4384.8,0.781]
[1757345035611,3.2078,4385.0,4384.8,0.781]
[1757345035813,0.8087,4384.9,4384.8,0.781]
[1757345036914,0.8087,4385.4,4384.8,0.781]
[1757345037106,0.8087,4385.4,4384.5,0.3193]
[1757345037107,1.03674001,4385.4,4384.7,3.2078]
[1757345037313,0.8087,4385.4,4384.7,3.2078]
[1757345037615,0.22805,4385.3,4384.7,3.2078]
[1757345037810,3.2078,4384.9,4384.6,0.781]
[1757345038010,0.8087,4384.8,4384.2,0.245]
[1757345038813,1.0537,4385.3,4384.6,0.781]
[1757345039512,0.245,4385.5,4384.6,3.2078]
[1757345039707,0.8087,4385.7,4384.8,0.781]
[1757345039912,3.2078,4385.9,4384.8,1.00903]
[1757345040209,3.2078,4385.9,4385.2,0.781]
[1757345040615,3.2078,4385.9,4385.3,0.781]
[1757345041006,3.2078,4386.1,4385.3,0.781]
[1757345041210,0.245,4386.4,4385.5,0.3193]
[1757345041519,3.2078,4386.6,4385.7,0.781]
[1757345041709,0.8087,4386.5,4385.7,0.781]
[1757345042116,1.1153,4386.5,4385.7,0.781]
[1757345042819,1.1153,4386.5,4385.8,0.781]
[1757345043218,0.8087,4386.5,4385.8,0.781]
[1757345043620,1.1153,4386.5,4385.8,0.781]
[1757345044521,2.1727,4386.5,4386.4,0.5253]
[1757345044714,1.8661,4386.5,4386.4,1.8343]
[1757345044914,0.5086,4386.5,4386.4,1.8343]
[1757345045210,1.8661,4386.5,4386.4,1.8343]
[1757345045419,1.8661,4386.5,4386.4,0.5253]
[1757345045726,0.5021,4386.1,4386.0,1.2604]
[1757345045922,1.2573,4386.1,4386.0,1.2604]
[1757345046320,1.2573,4386.1,4386.0,1.7491]
[1757345046716,1.7739,4386.1,4386.0,0.508]
[1757345047019,1.7739,4386.1,4385.7,3.2078]
[1757345047020,1.0187,4385.8,4385.4,0.7524]
[1757345047217,1.7739,4385.3,4385.2,0.508]
[1757345047518,1.7739,4384.8,4384.7,3.9608]
[1757345047717,1.7739,4384.8,4384.7,4.99351597]
[1757345048221,3.963,4384.8,4384.2,3.2078]